bitfinex/quotes_SOLUSD_20240714
["timestamp","ask_amount","ask_price","bid_price","bid_amount"]
[1720972205248,45.0,146.17,146.07,22.04]
[1720972205444,6.1174,146.2,146.07,22.04]
[1720972205445,51.841,146.18,146.07,22.04]
[1720972205847,6.1174,146.2,146.14,6.8423]
[1720972206047,6.8412,146.18,146.14,6.8423]
[1720972206377,6.8412,146.18,146.13,6.8428]
[1720972206956,6.8415,146.17,146.13,6.8428]
[1720972207167,6.8415,146.17,146.07,22.04]
[1720972207367,6.8419,146.16,146.08,20.0]
[1720972207760,6.8426,146.15,146.08,20.0]
[1720972208069,6.8423,146.15,146.11,6.8437]
[1720972208576,51.8428,146.14,146.06,15.9124]
[1720972208748,45.0,146.14,146.06,15.9124]
[1720972209090,45.0,146.14,146.1,6.8445]
[1720972209378,45.0,146.14,146.11,6.8441]
[1720972209880,45.0,146.14,146.12,6.8436]
[1720972210253,6.1174,146.2,146.12,6.8436]
[1720972210477,6.8421,146.16,146.12,6.8436]
[1720972210779,51.8423,146.15,146.11,6.844]
[1720972210976,6.8423,146.15,146.11,6.844]
[1720972211158,6.8417,146.17,146.13,6.8431]
[1720972211364,45.0,146.16,146.13,6.8431]
[1720972211874,45.0,146.16,146.12,6.8435]
[1720972212474,51.8418,146.16,146.12,6.8435]
[1720972213182,6.8423,146.15,146.11,6.844]
[1720972213682,51.8429,146.14,146.1,6.8445]
[1720972213847,6.8429,146.14,146.1,6.8445]
[1720972215066,6.8423,146.15,146.1,6.8445]
[1720972215271,51.8427,146.14,146.1,6.8445]
[1720972215485,6.8427,146.14,146.1,6.8445]
[1720972215680,6.8424,146.15,146.1,6.8445]
[1720972215850,45.0,146.14,146.1,6.8445]
[1720972216056,6.8428,146.14,146.1,6.8445]
[1720972216280,6.8424,146.15,146.1,6.8445]
[1720972216479,45.0,146.14,146.1,6.8445]
[1720972217381,45.0,146.14,146.06,15.9124]
[1720972217579,45.0,146.14,146.07,20.0]
[1720972218272,56.05,146.14,146.08,11.05]
[1720972218477,56.05,146.14,146.09,20.0]
[1720972218655,56.05,146.14,146.11,6.844]
[1720972219351,56.05,146.14,146.1,6.8444]
[1720972219352,62.8927,146.14,146.1,6.8444]
[1720972219562,11.05,146.13,146.1,6.8444]
[1720972219978,45.0,146.12,146.11,6.8441]
[1720972221992,11.05,146.14,146.11,6.8441]
[1720972222160,6.8407,146.19,146.09,31.05]
[1720972222366,17.8907,146.19,146.15,6.8422]
[1720972222566,6.841,146.18,146.14,6.8426]
[1720972222787,17.891,146.18,146.14,6.8426]
[1720972222982,6.8413,146.17,146.13,11.05]
[1720972223365,17.891,146.18,146.14,6.8425]
[1720972224085,23.2189,146.21,146.16,11.05]
[1720972224466,34.2689,146.21,146.16,11.05]
[1720972225092,34.2689,146.21,146.13,16.602]
[1720972225093,6.84,146.2,146.13,16.602]
[1720972225400,6.84,146.2,146.15,11.05]
[1720972225401,11.05,146.2,146.15,11.05]
[1720972225574,6.8407,146.19,146.13,16.602]
[1720972225774,6.8407,146.19,146.14,11.05]
[1720972225989,45.0,146.18,146.14,11.05]
[1720972226366,45.0,146.18,146.13,16.602]
[1720972226592,23.2186,146.21,146.13,16.602]
[1720972227013,6.8395,146.21,146.13,16.602]
[1720972227171,6.8391,146.22,146.13,16.602]
[1720972227488,6.8386,146.23,146.14,20.0]
[1720972227688,6.8391,146.22,146.14,20.0]
[1720972227864,6.8391,146.22,146.15,1.36566311]
[1720972228992,45.0,146.21,146.15,1.36566311]
[1720972229387,6.8391,146.22,146.15,1.36566311]
[1720972229590,45.0,146.21,146.15,1.36566311]
[1720972230191,6.569,146.28,146.15,22.07]
[1720972230401,6.569,146.28,146.16,20.0]
[1720972230572,6.8372,146.26,146.16,20.0]
[1720972231377,6.8381,146.24,146.16,20.0]
[1720972232094,23.6599,146.28,146.16,20.0]
[1720972232402,6.569,146.28,146.16,20.0]
[1720972232693,17.0875,146.31,146.18,22.07]
[1720972232890,6.8369,146.27,146.19,20.0]
[1720972234691,6.8363,146.28,146.19,20.62318082]
[1720972234887,6.8369,146.27,146.19,20.0]
[1720972235300,6.8363,146.28,146.19,20.0]
[1720972235504,45.0,146.27,146.19,20.0]
[1720972235874,51.8368,146.27,146.19,20.0]
[1720972236675,45.0,146.27,146.19,20.0]
[1720972236910,6.8377,146.25,146.18,20.0]
[1720972237203,51.8384,146.24,146.18,20.0]
[1720972237889,45.0,146.24,146.18,20.0]
[1720972238500,51.8381,146.24,146.18,20.0]
[1720972240016,6.8386,146.23,146.17,22.8943]
[1720972240310,45.0,146.22,146.17,22.8943]
[1720972241393,45.0,146.23,146.17,22.8943]
[1720972243009,45.0,146.24,146.17,22.8943]
[1720972243215,51.838,146.24,146.17,22.8943]
[1720972245609,6.8376,146.25,146.17,22.8943]
[1720972246201,6.8381,146.24,146.19,11.03]
[1720972246716,17.8681,146.24,146.19,11.03]
[1720972247094,6.8386,146.23,146.19,11.03]
[1720972247302,6.8386,146.23,146.18,11.03]
[1720972247613,51.8391,146.22,146.17,22.8943]
[1720972247820,51.8391,146.22,146.17,33.9243]
[1720972249713,11.03,146.23,146.18,11.03]
[1720972249920,17.09,146.29,146.18,11.03]
[1720972250131,11.03,146.24,146.19,11.03]
[1720972250419,45.0,146.23,146.19,11.03]
[1720972251094,45.0,146.24,146.19,11.03]
[1720972251309,56.03,146.24,146.19,11.03]
[1720972251492,62.8683,146.24,146.19,11.03]
[1720972251693,56.03,146.24,146.19,11.03]
[1720972251895,62.8682,146.24,146.19,11.03]
[1720972252818,6.8386,146.23,146.19,11.03]
[1720972253001,17.8686,146.23,146.18,11.03]
[1720972253395,17.8692,146.22,146.17,22.8943]
[1720972254708,6.8395,146.21,146.17,16.2446]
[1720972254919,45.0,146.24,146.15,11.03]
[1720972254920,56.03,146.2,146.15,11.03]
[1720972255133,56.03,146.19,146.14,15.3186]
[1720972255423,11.03,146.18,146.14,15.3186]
[1720972255592,45.0,146.17,146.14,15.3186]
[1720972256815,45.0,146.17,146.15,6.8419]
[1720972258031,45.0,146.18,146.14,15.3186]
[1720972258332,62.8704,146.19,146.14,15.3186]
[1720972259314,56.03,146.19,146.14,26.3486]
[1720972260509,6.6533,146.23,146.14,26.3486]
[1720972260727,11.03,146.2,146.14,26.3486]
[1720972261222,11.03,146.2,146.14,15.3186]
[1720972261406,11.03,146.2,146.14,26.3486]
[1720972262420,11.03,146.18,146.14,15.3186]
[1720972262803,11.03,146.19,146.14,15.3186]
[1720972263005,11.03,146.19,146.14,26.3486]
[1720972263694,11.03,146.2,146.14,26.3486]
[1720972263899,45.0,146.19,146.14,26.3486]
[1720972264103,56.03,146.19,146.14,26.3486]
[1720972264300,45.0,146.19,146.12,15.3186]
[1720972264600,11.03,146.17,146.12,26.3486]
[1720972265101,17.8711,146.18,146.12,26.3486]
[1720972265301,11.03,146.18,146.12,15.3186]
[1720972266222,11.03,146.18,146.15,6.8422]
[1720972266806,11.03,146.16,146.12,15.3186]
[1720972267121,17.8719,146.16,146.12,15.3186]
[1720972267606,11.03,146.15,146.12,15.3186]
[1720972268112,11.03,146.15,146.12,22.1619]
[1720972269027,11.03,146.15,146.13,6.8431]
[1720972271317,11.03,146.14,146.11,6.844]
[1720972271516,11.03,146.13,146.1,6.8445]
[1720972271723,6.8426,146.15,146.11,6.8441]
[1720972271922,11.03,146.14,146.09,11.03]
[1720972272302,11.03,146.14,146.12,6.8436]
[1720972272500,11.03,146.14,146.11,6.8439]
[1720972272832,11.03,146.15,146.11,6.8439]
[1720972273003,56.03,146.14,146.11,6.8439]
[1720972273548,11.03,146.15,146.12,6.8436]
[1720972273826,6.8421,146.16,146.12,6.8436]
[1720972274026,62.8723,146.15,146.11,6.844]
[1720972274204,11.03,146.14,146.08,16.1341]
[1720972274405,11.03,146.14,146.09,11.03]
[1720972274731,11.03,146.14,146.11,6.844]
[1720972275206,17.8727,146.14,146.1,6.8445]
[1720972275407,11.03,146.14,146.11,6.8441]
[1720972275622,11.03,146.13,146.11,6.8441]
[1720972275907,11.03,146.14,146.11,6.8441]
[1720972277736,17.8727,146.14,146.1,6.8445]
[1720972278029,32.5184,146.19,146.09,11.03]
[1720972278030,17.8732,146.13,146.09,6.8449]
[1720972278837,6.8442,146.11,146.07,6.846]
[1720972279022,17.8742,146.11,146.07,6.846]
[1720972279229,11.03,146.1,146.07,6.846]
[1720972279519,11.03,146.1,146.04,16.1341]
[1720972279520,6.8438,146.12,146.08,6.8454]
[1720972279721,11.03,146.12,146.09,6.8449]
[1720972280515,17.8733,146.13,146.09,6.8449]
[1720972282017,17.8736,146.12,146.06,11.03]
[1720972282219,17.8743,146.11,146.04,16.1341]
[1720972282525,6.8446,146.1,146.06,11.03]
[1720972282725,6.8446,146.1,146.05,11.03]
[1720972282913,6.8446,146.1,146.04,16.1341]
[1720972283112,17.8746,146.1,146.04,16.1341]
[1720972283316,17.8746,146.1,146.05,11.03]
[1720972284118,11.03,146.1,146.04,16.1341]
[1720972284437,11.03,146.1,146.04,27.1641]
[1720972284739,6.8453,146.09,146.05,6.8468]
[1720972285247,6.8455,146.08,146.04,34.0114]
[1720972285414,11.03,146.09,146.04,27.1641]
[1720972285911,11.03,146.09,146.04,16.1341]
[1720972286532,6.8456,146.08,146.04,22.9812]
[1720972286814,17.8756,146.08,146.04,22.9812]
[1720972287017,6.8456,146.08,146.04,22.9812]
[1720972287543,17.8761,146.07,146.01,16.3341]
[1720972287838,17.8761,146.07,146.03,6.8476]
[1720972288038,17.8761,146.07,146.02,17.8782]
[1720972288332,17.8765,146.06,146.02,6.8482]
[1720972288718,6.847,146.05,146.01,23.1828]
[1720972289042,17.8766,146.06,146.01,23.1828]
[1720972289228,17.8766,146.06,146.01,34.2128]
[1720972289542,6.847,146.05,146.01,34.2128]
[1720972289718,6.8474,146.04,146.01,0.2]
[1720972291441,6.8483,146.02,146.01,0.2]
[1720972291650,17.8783,146.02,146.01,0.2]
[1720972294747,6.8483,146.02,146.01,0.2]
[1720972295358,17.8783,146.02,146.01,0.2]
[1720972296346,11.03,146.02,146.01,0.2]
[1720972297449,17.8783,146.02,146.01,0.2]
[1720972299148,15.3254,146.07,146.01,0.2]
[1720972299350,6.8468,146.06,146.01,18.0785]
[1720972299554,17.8768,146.06,146.01,18.0785]
[1720972299756,6.8453,146.09,146.01,0.2]
[1720972299975,6.8441,146.11,146.06,6.8464]
[1720972300248,11.03,146.1,146.05,11.03]
[1720972300449,11.03,146.1,146.05,6.8466]
[1720972300754,23.3035,146.13,146.05,6.8466]
[1720972300939,23.3035,146.13,146.05,11.03]
[1720972301134,17.8749,146.1,146.05,17.8768]
[1720972301346,6.8441,146.11,146.05,11.03]
[1720972301647,11.03,146.11,146.07,6.8457]
[1720972301854,17.8738,146.12,146.07,6.8457]
[1720972302078,17.8738,146.12,146.06,11.03]
[1720972302079,11.03,146.12,146.06,11.03]
[1720972302229,6.8443,146.11,146.07,6.8457]
[1720972302426,17.8747,146.1,146.05,17.8769]
[1720972303158,6.8442,146.11,146.05,11.03]
[1720972303330,17.8747,146.1,146.01,45.2]
[1720972303652,17.8747,146.1,146.05,17.8767]
[1720972303853,6.8451,146.09,146.05,11.03]
[1720972304248,23.3035,146.13,146.01,45.2]
[1720972304453,17.8754,146.09,146.04,6.8471]
[1720972304754,17.8752,146.09,146.04,6.8471]
[1720972305259,17.8752,146.09,146.04,17.8771]
[1720972305432,17.8754,146.09,146.04,17.8774]
[1720972305758,6.8457,146.08,146.04,17.8771]
[1720972306154,6.8457,146.08,146.04,6.8471]
[1720972306347,45.0,146.12,146.01,45.2]
[1720972306656,11.03,146.1,146.05,11.03]
[1720972307474,17.8746,146.1,146.06,6.8463]
[1720972307645,6.8443,146.11,146.07,6.8456]
[1720972307957,17.8743,146.11,146.07,6.8456]
[1720972308169,6.8437,146.12,146.08,6.8454]
[1720972308336,11.03,146.11,146.08,6.8454]
[1720972308665,11.03,146.11,146.07,6.8459]
[1720972309153,17.8741,146.11,146.07,6.8459]
[1720972309538,6.1949,146.13,146.01,0.2]
[1720972309738,6.8457,146.08,146.01,0.2]
[1720972309943,11.03,146.09,146.04,17.877]
[1720972310460,6.8459,146.08,146.04,17.8773]
[1720972310835,6.8459,146.08,146.04,11.03]
[1720972311742,6.8459,146.08,146.04,17.8772]
[1720972311937,6.846,146.07,146.02,6.8482]
[1720972312151,6.8465,146.06,146.02,17.8782]
[1720972312458,6.8465,146.06,146.02,11.03]
[1720972312643,6.847,146.05,146.01,7.0486]
[1720972312843,17.8766,146.06,146.01,18.0786]
[1720972313044,6.1949,146.13,146.01,0.2]
[1720972313045,6.8463,146.07,146.01,0.2]
[1720972313237,6.8463,146.07,146.03,17.8775]
[1720972313443,17.8756,146.08,146.03,17.8775]
[1720972313757,6.8456,146.08,146.04,6.8473]
[1720972314062,17.8752,146.09,146.05,8.21611056]
[1720972314364,17.8746,146.1,146.05,8.21601056]
[1720972314573,6.8442,146.11,146.06,1.18841738]
[1720972314760,32.4314,146.15,146.07,6.8456]
[1720972315065,11.03,146.12,146.07,6.8456]
[1720972315371,11.03,146.11,146.06,17.8763]
[1720972315541,6.8449,146.1,146.06,17.8763]
[1720972315747,17.8749,146.1,146.06,6.8463]
[1720972315947,11.03,146.1,146.06,6.8463]
[1720972316370,11.03,146.09,146.05,6.8469]
[1720972316770,17.8747,146.1,146.05,6.8469]
[1720972317067,22.1678,146.15,146.1,6.8442]
[1720972317366,6.8424,146.15,146.11,6.844]
[1720972317556,6.8419,146.16,146.11,6.8437]
[1720972317761,17.8719,146.16,146.1,11.03]
[1720972317949,17.8719,146.16,146.11,17.8738]
[1720972318138,17.8719,146.16,146.11,11.03]
[1720972318557,17.8719,146.16,146.1,11.03]
[1720972319155,11.03,146.15,146.1,11.03]
[1720972319554,6.8428,146.14,146.1,11.03]
[1720972319763,17.8728,146.14,146.06,45.0]
[1720972320070,17.8728,146.14,146.09,11.03]
[1720972320368,6.8423,146.15,146.1,6.8442]
[1720972320565,15.8645,146.19,146.12,11.03]
[1720972320984,6.8409,146.18,146.13,6.8431]
[1720972321343,17.8718,146.16,146.11,32.953]
[1720972321559,17.8718,146.16,146.11,21.923]
[1720972321872,11.03,146.15,146.12,6.8436]
[1720972322277,11.03,146.15,146.11,21.9233]
[1720972322475,6.8428,146.14,146.11,15.0793]
[1720972322650,11.03,146.14,146.1,6.8443]
[1720972322850,23.5123,146.2,146.12,6.8435]
[1720972323148,11.03,146.15,146.11,6.8441]
[1720972323371,17.8728,146.14,146.07,15.0793]
[1720972323572,17.8728,146.14,146.1,6.8445]
[1720972323781,17.8732,146.13,146.07,15.0793]
[1720972323948,17.874,146.12,146.08,6.8455]
[1720972324154,17.8742,146.11,146.07,15.0793]
[1720972324355,11.03,146.11,146.07,15.0793]
[1720972324563,11.03,146.11,146.08,6.8455]
[1720972325182,6.8433,146.13,146.04,15.0793]
[1720972325471,15.8645,146.15,146.08,11.03]
[1720972325775,11.03,146.13,146.08,11.03]
[1720972326077,15.8645,146.15,146.07,6.8458]
[1720972326078,11.03,146.11,146.07,6.8458]
[1720972326251,17.8742,146.11,146.04,15.0793]
[1720972326449,17.8742,146.11,146.06,11.03]
[1720972326649,32.9706,146.15,146.06,11.03]
[1720972326650,32.9706,146.15,146.06,6.8463]
[1720972326869,11.03,146.09,146.06,6.8463]
[1720972327171,6.8443,146.11,146.07,6.846]
[1720972327467,6.8437,146.12,146.08,6.8454]
[1720972327672,11.03,146.11,146.08,6.8454]
[1720972327874,17.8741,146.11,146.07,6.8458]
[1720972328169,11.03,146.1,146.07,6.8458]
[1720972328370,6.8441,146.11,146.06,6.8464]
[1720972328584,11.03,146.1,146.06,6.8464]
[1720972328870,6.4118,146.14,146.06,11.03]
[1720972329076,6.4118,146.14,146.07,56.03]
[1720972329285,11.03,146.12,146.07,56.03]
[1720972329655,11.03,146.13,146.1,6.8441]
[1720972330170,17.8737,146.12,146.07,6.8457]
[1720972330356,11.03,146.12,146.08,6.8452]
[1720972330549,11.03,146.12,146.09,6.8449]
[1720972330775,17.8738,146.12,146.08,6.8454]
[1720972331076,11.03,146.12,146.08,6.8454]
[1720972331857,11.03,146.11,146.07,6.8459]
[1720972332763,11.03,146.1,146.07,6.8459]
[1720972332966,11.03,146.1,146.04,15.0793]
[1720972333164,11.03,146.1,146.05,56.03]
[1720972333957,11.03,146.1,146.05,45.0]
[1720972334175,6.8433,146.13,146.06,11.03]
[1720972334376,11.03,146.12,146.08,6.8454]
[1720972334579,11.03,146.11,146.08,6.8454]
[1720972335764,17.8746,146.11,146.05,45.0]
[1720972335979,11.03,146.11,146.06,6.8464]
[1720972336187,11.03,146.1,146.06,6.8464]
[1720972336481,11.03,146.1,146.07,6.8458]
[1720972336694,6.844,146.12,146.08,6.8454]
[1720972336858,11.03,146.11,146.08,6.8454]
[1720972337055,11.03,146.11,146.05,45.0]
[1720972337283,6.8452,146.09,146.05,51.8465]
[1720972337472,11.03,146.08,146.06,6.8463]
[1720972337669,6.8451,146.09,146.05,6.8468]
[1720972337970,11.03,146.09,146.05,6.8468]
[1720972338372,17.8751,146.09,146.05,6.8468]
[1720972339464,17.1096,146.12,146.01,16.3163]
[1720972339669,17.1096,146.12,146.03,6.8475]
[1720972339670,11.03,146.07,146.03,6.8475]
[1720972339872,17.8761,146.07,146.03,6.8475]
[1720972340299,15.987,146.09,146.01,0.2]
[1720972340300,11.03,146.05,146.01,0.2]
[1720972340487,11.03,146.03,146.01,0.2]
[1720972341179,17.1142,146.08,146.01,0.2]
[1720972341404,11.03,146.03,146.01,0.2]
[1720972341891,17.8775,146.04,146.01,0.2]
[1720972342086,11.03,146.03,146.01,0.2]
[1720972342288,6.8475,146.04,146.01,0.2]
[1720972342794,6.8479,146.03,146.01,0.2]
[1720972343467,6.8474,146.04,146.01,0.2]
[1720972343668,39.2342,146.08,146.01,0.2]
[1720972343669,6.8469,146.05,146.01,0.2]
[1720972343880,6.8474,146.04,146.01,0.2]
[1720972344698,6.848,146.03,146.01,0.2]
[1720972344885,6.8483,146.02,146.01,0.2]
[1720972345678,6.848,146.03,146.01,0.2]
[1720972345874,17.1166,146.06,146.01,0.2]
[1720972346089,6.848,146.03,146.01,0.2]
[1720972346484,6.8475,146.04,146.01,0.2]
[1720972346664,23.5875,146.06,146.01,0.2]
[1720972346665,6.8483,146.02,146.01,0.2]
[1720972348870,22.12,146.05,146.01,0.2]
[1720972349072,6.8478,146.04,146.01,0.2]
[1720972349297,6.848,146.03,146.01,0.2]
[1720972349495,6.8482,146.03,146.01,0.2]
[1720972349678,6.848,146.03,146.01,0.2]
[1720972350375,6.8483,146.02,146.01,0.2]
[1720972352574,17.1177,146.05,146.01,0.2]
[1720972352794,6.4709,146.06,146.01,0.2]
[1720972353002,6.8457,146.08,146.04,6.8473]
[1720972353170,6.8457,146.08,146.03,6.8475]
[1720972353577,6.8457,146.08,146.04,1.36716874]
[1720972353778,6.2853,146.1,146.03,6.8475]
[1720972353979,6.8464,146.07,146.02,6.8482]
[1720972354194,6.8465,146.06,146.02,6.8482]
[1720972354616,6.8465,146.06,146.01,7.0487]
[1720972354804,6.8469,146.05,146.01,7.0487]
[1720972355003,6.8466,146.06,146.01,7.0485]
[1720972355208,39.2338,146.09,146.01,0.2]
[1720972355380,6.8477,146.04,146.01,0.2]
[1720972355708,6.8479,146.03,146.01,0.2]
[1720972357011,6.8483,146.02,146.01,0.2]
[1720972357702,6.8478,146.04,146.01,0.2]
[1720972358206,22.12,146.06,146.01,0.2]
[1720972358395,6.8478,146.04,146.01,0.2]
[1720972358705,6.848,146.03,146.01,0.2]
[1720972359207,6.8483,146.02,146.01,0.2]
[1720972361107,6.848,146.03,146.01,0.2]
[1720972361292,6.8483,146.02,146.01,0.2]
[1720972361610,6.848,146.03,146.01,0.2]
[1720972362012,6.8483,146.02,146.01,0.2]
[1720972362309,22.12,146.06,146.01,0.2]
[1720972362679,6.8483,146.02,146.01,0.2]
[1720972363906,43.16873925,146.1,146.01,7.0488]
[1720972363907,6.8472,146.05,146.01,7.0488]
[1720972364084,6.8475,146.04,146.01,0.2]
[1720972364288,6.8475,146.04,146.01,45.2]
[1720972364800,39.2332,146.09,146.01,45.2]
[1720972364998,6.8471,146.05,146.01,45.2]
[1720972365199,39.2332,146.09,146.01,0.2]
[1720972365397,6.848,146.03,146.01,0.2]
[1720972366994,6.8483,146.02,146.01,0.2]
[1720972367194,6.848,146.03,146.01,0.2]
[1720972367894,6.8483,146.02,146.01,0.2]
[1720972368809,6.848,146.03,146.01,0.2]
[1720972369323,6.8483,146.02,146.01,0.2]
[1720972386236,17.9183,146.02,146.01,0.2]
[1720972386916,62.1983,146.02,146.01,0.2]
[1720972388222,6.8483,146.02,146.01,0.2]
[1720972388431,17.9183,146.02,146.01,0.2]
[1720972389235,28.9883,146.02,146.01,0.2]
[1720972390538,6.8483,146.02,146.01,0.2]
[1720972390706,62.1983,146.02,146.01,0.2]
[1720972391409,6.8483,146.02,146.01,0.2]
[1720972391602,17.9183,146.02,146.01,0.2]
[1720972392729,21.8511,146.12,146.02,16.5814]
[1720972392934,17.9156,146.08,146.03,63.46379032]
[1720972393148,6.8456,146.08,146.03,70.31159032]
[1720972393317,6.846,146.07,146.03,70.31159032]
[1720972393715,34.2138,146.14,146.03,70.31119032]
[1720972393716,17.1109,146.11,146.03,70.31119032]
[1720972393932,11.07,146.08,146.03,63.46379032]
[1720972394116,17.1109,146.11,146.03,63.46379032]
[1720972394117,11.07,146.05,146.03,45.0]
[1720972394326,22.11,146.1,146.03,45.0]
[1720972394504,6.8475,146.04,146.01,0.2]
[1720972394710,22.11,146.07,146.01,0.2]
[1720972395239,6.847,146.05,146.01,7.0487]
[1720972395441,6.847,146.05,146.02,0.99534375]
[1720972395623,6.8466,146.06,146.02,7.84354375]
[1720972396131,6.847,146.05,146.01,0.2]
[1720972396636,61.0734,146.1,146.01,0.2]
[1720972396836,6.8479,146.03,146.01,0.2]
[1720972397833,6.848,146.03,146.01,0.2]
[1720972398010,6.8483,146.02,146.01,0.2]
[1720972402623,28.9583,146.02,146.01,0.2]
[1720972402819,28.9583,146.02,145.96,0.8532299]
[1720972402820,6.8507,145.97,145.96,0.8532299]
[1720972410417,6.8507,145.97,145.96,2.99e-05]
[1720972410623,51.8507,145.97,145.96,2.99e-05]
[1720972411225,6.8507,145.97,145.96,2.99e-05]
[1720972411425,38.9771,145.98,145.89,16.5814]
[1720972411426,6.853,145.92,145.89,16.5814]
[1720972412180,22.11,145.94,145.82,259.5532299]
[1720972412181,5.4434,145.94,145.93,16.5933]
[1720972412330,6.8488,146.02,145.97,6.8503]
[1720972412660,6.8474,146.04,145.99,6.8497]
[1720972412826,6.8474,146.04,145.93,61.5933]
[1720972412827,6.8465,146.06,146.0,1.36965713]
[1720972413020,17.1142,146.08,146.01,6.8488]
[1720972413220,6.8469,146.05,146.0,6.8492]
[1720972413525,6.8469,146.05,145.99,6.8493]
[1720972413526,6.8471,146.05,145.99,6.8493]
[1720972413717,6.8471,146.05,146.0,52.48196854]
[1720972413923,6.8471,146.05,146.01,0.63305517]
[1720972414142,17.1142,146.08,146.0,45.0]
[1720972414352,6.8479,146.03,146.0,45.0]
[1720972414642,17.1142,146.08,146.0,45.0]
[1720972414823,6.848,146.03,146.0,45.0]
[1720972415021,6.8484,146.02,146.0,45.0]
[1720972415223,6.8484,146.02,145.98,6.8502]
[1720972415443,6.8479,146.03,145.98,6.8502]
[1720972415641,6.8479,146.03,145.99,45.0]
[1720972415948,6.8483,146.03,145.99,45.0]
[1720972417330,6.8475,146.04,145.99,45.0]
[1720972417647,6.8475,146.04,145.99,46.36923864]
[1720972418015,6.8475,146.04,145.99,51.8497]
[1720972418220,6.8479,146.03,145.99,51.8497]
[1720972418749,6.8484,146.02,145.99,45.0]
[1720972418953,6.8479,146.03,145.99,45.0]
[1720972419825,6.8479,146.03,146.0,16.5933]
[1720972420026,6.8479,146.03,146.01,45.0]
[1720972421250,6.8485,146.02,146.0,16.5933]
[1720972421447,6.848,146.03,146.0,16.5933]
[1720972422365,6.8484,146.02,146.0,16.5933]
[1720972422542,6.848,146.03,146.0,16.5933]
[1720972423662,42.0046,146.08,146.01,45.0]
[1720972424160,6.8466,146.06,146.02,1.36957296]
[1720972424335,6.846,146.08,146.03,6.8478]
[1720972424673,17.1102,146.12,146.04,1.36936676]
[1720972425151,6.846,146.07,146.02,6.8479]
[1720972425454,15.8979,146.13,146.01,45.0]
[1720972425455,6.847,146.05,146.01,51.8487]
[1720972425671,6.8474,146.04,146.01,45.0]
[1720972426379,17.1143,146.08,146.01,45.0]
[1720972426879,6.8477,146.04,146.01,45.0]
[1720972427961,6.848,146.03,146.01,45.0]
[1720972429181,6.848,146.03,146.0,16.5933]
[1720972429372,6.848,146.03,146.01,45.0]
[1720972430254,17.1143,146.08,146.01,45.0]
[1720972430451,6.8477,146.04,146.01,45.0]
[1720972431052,6.8479,146.03,146.01,45.0]
[1720972431256,17.1169,146.06,146.0,16.5933]
[1720972431567,6.8475,146.04,146.01,45.0]
[1720972431778,6.8475,146.04,146.01,46.36961554]
[1720972432483,6.8482,146.03,146.01,45.0]